bitfinex/quotes_ETHUSD_20230109
["timestamp","ask_amount","ask_price","bid_price","bid_amount"]
[1673255139111,0.09580801,1311.8,1311.7,24.61007]
[1673255139272,0.09580801,1311.8,1311.7,26.35907]
[1673255145327,0.09580801,1311.8,1311.7,29.35907]
[1673255148690,0.09580801,1311.8,1311.7,33.15673064]
[1673255150774,0.09580801,1311.8,1311.7,31.41773064]
[1673255151001,0.09580801,1311.8,1311.7,27.62007]
[1673255154099,0.09580801,1311.8,1311.7,4.749]
[1673255155522,0.09580801,1311.8,1311.7,12.37269]
[1673255158102,0.09580801,1311.8,1311.7,1.749]
[1673255158657,0.09580801,1311.8,1311.7,9.37269]
[1673255159997,0.09580801,1311.8,1311.7,16.99638]
[1673255161888,0.09580801,1311.8,1311.7,1.749]
[1673255162314,0.09580801,1311.8,1311.7,9.37269]
[1673255162536,0.09580801,1311.8,1311.7,9.36977757]
[1673255163537,0.09580801,1311.8,1311.7,16.99346757]
[1673255164420,0.09580801,1311.8,1311.7,1.74608757]
[1673255164632,0.09580801,1311.8,1311.7,16.99346757]
[1673255167786,0.09580801,1311.8,1311.7,9.36977757]
[1673255168622,0.09580801,1311.8,1311.6,9.36478]
[1673255168829,0.09580801,1311.8,1311.6,9.36778]
[1673255169041,0.09580801,1311.8,1311.6,16.99205]
[1673255169297,0.09580801,1311.8,1311.6,24.61632]
[1673255170214,0.09580801,1311.8,1311.6,16.99205]
[1673255171141,0.09580801,1311.8,1311.6,24.61632]
[1673255174549,0.09580801,1311.8,1311.7,10.0]
[1673255175657,0.09580801,1311.8,1311.7,17.62369]
[1673255178737,0.09580801,1311.8,1311.7,10.0]
[1673255182514,0.09580801,1311.8,1311.4,20.71168]
[1673255182740,0.09580801,1311.8,1311.6,9.36472]
[1673255182988,0.09580801,1311.8,1311.6,16.98863]
[1673255183592,0.14580801,1311.8,1311.6,16.98863]
[1673255183791,0.09580801,1311.8,1311.6,16.98863]
[1673255189817,0.14580801,1311.8,1311.6,16.98863]
[1673255190027,0.14580801,1311.8,1311.6,25.51598442]
[1673255190028,0.09580801,1311.8,1311.6,25.51598442]
[1673255191139,0.09580801,1311.8,1311.6,24.6129]
[1673255191839,0.14580801,1311.8,1311.6,24.6129]
[1673255192060,0.09580801,1311.8,1311.6,24.6129]
[1673255197346,0.09580801,1311.8,1311.6,9.36472]
[1673255197513,0.09580801,1311.8,1311.4,32.62084064]
[1673255197514,10.77617133,1311.8,1311.4,36.4483]
[1673255197707,10.77617133,1311.8,1311.4,25.11257]
[1673255197708,6.67725154,1311.7,1311.4,25.11257]
[1673255197925,32.59745788,1311.8,1311.4,32.738]
[1673255198130,37.7459525,1311.8,1311.4,32.738]
[1673255198544,33.74284072,1311.8,1311.4,32.738]
[1673255200039,37.7459525,1311.8,1311.4,32.738]
[1673255200694,33.74284072,1311.8,1311.4,32.738]
[1673255201912,37.7459525,1311.8,1311.4,32.738]
[1673255202122,33.79284072,1311.8,1311.4,32.738]
[1673255202382,37.7459525,1311.8,1311.4,32.738]
[1673255202589,33.74284072,1311.8,1311.4,32.738]
[1673255204693,33.74284072,1311.8,1311.4,32.73513036]
[1673255206259,33.79284072,1311.8,1311.4,32.73513036]
[1673255206480,33.74284072,1311.8,1311.4,32.73513036]
[1673255217165,6.66995994,1311.7,1311.4,32.73513036]
[1673255217639,33.73686257,1311.8,1311.4,32.73513036]
[1673255220677,33.78686257,1311.8,1311.4,32.73513036]
[1673255220887,33.73686257,1311.8,1311.4,32.73513036]
[1673255222242,33.73687127,1311.8,1311.4,35.5746497]
[1673255223748,33.73687127,1311.8,1311.4,32.73513036]
[1673255224118,27.06690263,1311.8,1311.4,32.73513036]
[1673255224332,21.91840801,1311.8,1311.5,5.751]
[1673255224545,28.58904347,1311.8,1311.6,22.87281]
[1673255224805,21.96840801,1311.8,1311.6,22.87281]
[1673255225119,24.99118881,1311.8,1311.6,22.87281]
[1673255226119,24.99118881,1311.8,1311.6,30.49708]
[1673255226365,21.91840801,1311.8,1311.6,22.87281]
[1673255226692,0.09580801,1311.8,1311.6,22.87281]
[1673255226920,0.09580801,1311.8,1311.6,15.24854]
[1673255232595,0.09580801,1311.8,1311.6,15.09854]
[1673255232958,0.14580801,1311.8,1311.6,15.09854]
[1673255233201,0.09580801,1311.8,1311.6,15.09854]
[1673255242580,0.09580801,1311.8,1311.6,22.72281]
[1673255244981,0.09580801,1311.8,1311.6,15.09854]
[1673255245418,0.09580801,1311.8,1311.6,16.84154]
[1673255247378,0.09580801,1311.8,1311.6,24.46581]
[1673255249301,0.09580801,1311.8,1311.6,9.21727]
[1673255249542,6.81574822,1311.8,1311.4,30.76037]
[1673255249677,8.72357422,1311.8,1311.4,49.80839064]
[1673255250358,8.72357422,1311.8,1311.4,36.53589064]
[1673255255089,8.72357422,1311.8,1311.4,36.53355681]
[1673255256874,8.72357422,1311.8,1311.4,28.90818681]
[1673255259343,8.7203737,1311.8,1311.5,1.734]
[1673255259603,31.4170737,1311.8,1311.5,1.734]
[1673255259789,0.05,1311.7,1311.5,9.35865]
[1673255260001,31.4170737,1311.8,1311.5,9.35865]
[1673255260198,31.4170737,1311.8,1311.5,16.9835]
[1673255268945,31.41777599,1311.8,1311.5,16.9835]
[1673255269424,31.41845402,1311.8,1311.5,16.9835]
[1673255271116,31.41576341,1311.8,1311.5,9.35865]
[1673255274213,31.46576341,1311.8,1311.5,9.35865]
[1673255274383,31.41576341,1311.8,1311.5,9.35865]
[1673255274577,8.96305156,1311.7,1311.2,20.87889]
[1673255274940,6.66875156,1311.6,1311.2,28.50544]
[1673255275146,6.66875156,1311.6,1311.2,15.25284]
[1673255277145,27.59795156,1311.6,1311.2,15.25284]
[1673255277535,37.51685156,1311.6,1311.2,22.87944]
[1673255277880,41.98212129,1311.6,1311.2,22.87944]
[1673255278267,0.05,1311.4,1311.2,22.87944]
[1673255278461,35.31336973,1311.6,1311.2,22.87944]
[1673255278669,41.97832449,1311.6,1311.2,22.87944]
[1673255281342,41.97832449,1311.6,1311.2,25.71933925]
[1673255282402,41.97832449,1311.6,1311.2,22.87944]
[1673255283442,41.97832449,1311.6,1311.2,25.71933258]
[1673255284266,41.97832449,1311.6,1311.2,29.71933258]
[1673255284462,30.8481,1311.6,1311.2,31.47033258]
[1673255284673,30.8481,1311.6,1311.3,1.744]
[1673255284884,30.8481,1311.6,1311.4,15.25086]
[1673255285448,9.9189,1311.6,1311.4,7.62543]
[1673255285668,9.9189,1311.6,1311.4,22.87629]
[1673255286564,0.5433,1311.7,1311.4,26.67395064]
[1673255286775,33.8196174,1311.8,1311.5,1.751]
[1673255287036,33.2765174,1311.8,1311.6,28.61681]
[1673255288592,33.3265174,1311.8,1311.6,28.61681]
[1673255288786,33.2765174,1311.8,1311.6,28.61681]
[1673255291196,0.73423807,1311.7,1311.6,28.61681]
[1673255299826,0.73423807,1311.7,1311.6,28.61447968]
[1673255300723,0.73423807,1311.7,1311.6,32.41214032]
[1673255305611,0.73423807,1311.7,1311.6,34.14514032]
[1673255315755,0.73423807,1311.7,1311.6,34.09514032]
[1673255316147,0.73423807,1311.7,1311.6,32.35114032]
[1673255317691,0.73423807,1311.7,1311.6,28.35114032]
[1673255322572,0.73423807,1311.7,1311.6,26.61814032]
[1673255324999,0.73423807,1311.7,1311.6,22.82047968]
[1673255334844,0.68423807,1311.7,1311.6,22.82047968]
[1673255340875,0.68055392,1311.7,1311.6,22.82047968]
[1673255362764,0.68055392,1311.7,1311.6,26.61814032]
[1673255363083,0.68055392,1311.7,1311.6,28.35214032]
[1673255363871,0.68055392,1311.7,1311.6,28.34874134]
[1673255366425,0.0931174,1311.8,1311.6,28.34874134]
[1673255366666,0.0931174,1311.8,1311.7,30.66873064]
[1673255370971,0.1431174,1311.8,1311.7,30.66873064]
[1673255371112,0.0931174,1311.8,1311.7,32.64973064]
[1673255373869,0.0931174,1311.8,1311.7,35.64973064]
[1673255374856,0.09105112,1311.8,1311.7,35.64973064]
[1673255380482,0.09105112,1311.8,1311.7,35.41973064]
[1673255380697,0.09105112,1311.8,1311.7,29.66873064]
[1673255395106,10.37802947,1312.0,1311.7,33.54228263]
[1673255395304,10.37802947,1312.0,1311.9,30.49012]
[1673255395549,0.09832947,1312.0,1311.9,34.28778064]
[1673255397344,0.09832947,1312.0,1311.9,36.02178064]
[1673255397558,0.09832947,1312.0,1311.9,39.02178064]
[1673255399963,0.09832947,1312.0,1311.9,31.39925064]
[1673255400173,0.09832947,1312.0,1311.9,29.66525064]
[1673255428347,9.5376,1312.2,1311.9,29.66525064]
[1673255428558,9.5376,1312.2,1312.1,7.62137]
[1673255428820,21.0781,1312.3,1312.1,7.62137]
[1673255429206,21.0781,1312.3,1312.1,15.24274]
[1673255429615,27.72949394,1312.3,1312.1,15.24274]
[1673255430064,21.0781,1312.3,1312.1,15.24274]
[1673255434899,21.1281,1312.3,1312.1,15.24274]
[1673255435118,21.0781,1312.3,1312.1,15.24274]
[1673255436663,21.0781,1312.3,1312.0,15.41906064]
[1673255436862,31.73260572,1312.3,1312.0,11.41906064]
[1673255437083,36.75557129,1312.3,1312.0,11.41906064]
[1673255437295,36.75557129,1312.3,1312.0,19.04101064]
[1673255438044,36.75557129,1312.3,1312.0,11.41906064]
[1673255438660,36.75557129,1312.3,1312.0,19.04101064]
[1673255439278,36.75557129,1312.3,1312.0,26.66296064]
[1673255442794,32.75245951,1312.3,1312.0,26.66296064]
[1673255442952,21.0781,1312.3,1312.0,26.66296064]
[1673255445316,27.72949394,1312.3,1312.0,26.66296064]
[1673255445623,21.0781,1312.3,1312.0,26.66296064]
[1673255446897,21.0781,1312.3,1312.2,7.62078]
[1673255447098,14.88031178,1312.4,1312.2,7.62078]
[1673255447317,16.55221864,1312.4,1312.2,15.24156]
[1673255448234,23.20361258,1312.4,1312.2,15.24156]
[1673255448652,16.55221864,1312.4,1312.2,15.24156]
[1673255450574,16.55221864,1312.4,1312.2,15.23823983]
[1673255451166,23.20361258,1312.4,1312.2,15.23823983]
[1673255451377,23.20361258,1312.4,1312.2,7.61745983]
[1673255451837,16.55221864,1312.4,1312.2,7.61745983]
[1673255452160,23.20361258,1312.4,1312.2,7.61745983]
[1673255452746,16.55221864,1312.4,1312.2,7.61745983]
[1673255456340,12.54910686,1312.4,1312.2,15.23823983]
[1673255456960,16.55221864,1312.4,1312.2,15.23823983]
[1673255458018,16.00891864,1312.4,1312.2,15.23823983]
[1673255458355,12.00580686,1312.4,1312.2,15.23823983]
[1673255458961,16.00891864,1312.4,1312.2,15.23823983]
[1673255459587,12.00580686,1312.4,1312.2,15.23823983]
[1673255460008,16.00891864,1312.4,1312.2,15.23823983]
[1673255460482,12.00580686,1312.4,1312.2,15.23823983]
[1673255461061,16.00891864,1312.4,1312.2,15.23823983]
[1673255462370,12.00580686,1312.4,1312.2,15.23823983]
[1673255463066,16.00891864,1312.4,1312.2,15.23823983]
[1673255463277,10.3339,1312.4,1312.2,15.23823983]
[1673255467307,10.3339,1312.4,1312.2,26.65668047]
[1673255467839,10.3839,1312.4,1312.2,26.65668047]
[1673255468010,10.3339,1312.4,1312.2,26.65668047]
[1673255473283,10.3339,1312.4,1312.2,26.65462057]
[1673255474521,0.09475682,1312.5,1312.3,3.79766064]
[1673255474759,0.09475682,1312.5,1312.4,26.65652064]
[1673255474955,0.09475682,1312.5,1312.4,29.65652064]
[1673255476454,0.09475682,1312.5,1312.4,14.41728064]
[1673255476679,0.09475682,1312.5,1312.4,7.61962]
[1673255477071,6.74615076,1312.5,1312.4,7.61962]
[1673255477283,0.95464754,1312.5,1312.4,15.23924]
[1673255478310,2.00010288,1312.5,1312.4,15.23924]
[1673255480188,2.00010288,1312.5,1312.4,22.85886]
[1673255480189,1.14021216,1312.5,1312.4,22.85886]
[1673255487495,2.16e-06,1312.5,1312.4,26.65652064]
[1673255490722,2.16e-06,1312.5,1312.4,29.65652064]
[1673255492975,2.16e-06,1312.5,1312.4,29.88652064]
[1673255495336,2.16e-06,1312.5,1312.4,31.62052064]
[1673255495972,2.16e-06,1312.5,1312.4,32.38405898]
[1673255496185,0.10175648,1312.6,1312.5,4.00199784]
[1673255496504,0.10175648,1312.6,1312.5,30.65677848]
[1673255497242,0.10175648,1312.6,1312.5,33.88677848]
[1673255497577,0.09956704,1312.6,1312.5,35.62777848]
[1673255499331,7.04e-06,1312.6,1312.5,35.62777848]
[1673255499546,0.12432184,1312.8,1312.5,36.39131682]
[1673255499792,0.12432184,1312.8,1312.7,30.47152]
[1673255500001,0.12432184,1312.8,1312.7,34.26918064]
[1673255501031,0.12432184,1312.8,1312.7,19.03342064]
[1673255501239,0.12432184,1312.8,1312.7,28.9546427]
[1673255509423,0.12432184,1312.8,1312.7,21.3367627]
[1673255511434,0.12432184,1312.8,1312.7,28.9546427]
[1673255513936,0.12432184,1312.8,1312.7,26.65130064]
[1673255514491,0.12432184,1312.8,1312.7,19.03342064]
[1673255515296,0.12432184,1312.8,1312.7,11.41554064]
[1673255515557,0.12432184,1312.8,1312.7,26.65130064]
[1673255524492,0.12432184,1312.8,1312.7,26.64888245]
[1673255524658,0.12432184,1312.8,1312.7,29.7137707]
[1673255525321,0.12432184,1312.8,1312.7,15.23334181]
[1673255525650,0.12432184,1312.8,1312.7,22.85122181]
[1673255527543,1.04560391,1312.8,1312.7,22.85122181]
[1673255531706,1.04560391,1312.8,1312.7,26.64888245]
[1673255534791,1.04560391,1312.8,1312.7,19.03100245]
[1673255535003,1.04560391,1312.8,1312.7,26.64888245]
[1673255549382,1.04560391,1312.8,1312.7,26.64573241]
[1673255554443,1.04560391,1312.8,1312.7,19.02785241]
[1673255555252,1.04560391,1312.8,1312.7,26.64573241]
[1673255560604,1.09560391,1312.8,1312.7,26.64573241]
[1673255560859,1.04560391,1312.8,1312.7,26.64573241]
[1673255570062,1.04560391,1312.8,1312.7,26.64336865]
[1673255571158,32.4085,1313.0,1312.7,31.53447971]
[1673255571378,32.4085,1313.0,1312.9,22.85016]
[1673255571582,1.40667347,1313.1,1312.9,26.64782064]
[1673255574504,0.86297347,1313.1,1312.9,26.64782064]
[1673255587508,7.46778851,1313.1,1312.9,22.85016]
[1673255587719,0.86297347,1313.1,1312.9,22.85016]
[1673255591575,0.05,1313.0,1312.9,22.85016]
[1673255591741,0.86297347,1313.1,1312.9,22.85016]
[1673255593627,0.86297347,1313.1,1312.9,22.84635474]
[1673255596051,0.86297347,1313.1,1312.9,26.64401538]
[1673255598309,0.86297347,1313.1,1313.0,3.79766064]
[1673255598518,0.86297347,1313.1,1313.0,30.64608064]
[1673255600387,0.86297347,1313.1,1313.0,30.87608064]
[1673255600614,0.86297347,1313.1,1313.0,33.87608064]
[1673255603587,3.47e-06,1313.1,1313.0,33.87608064]
[1673255603853,0.10690792,1313.2,1313.0,33.87608064]
[1673255604106,0.10690792,1313.2,1313.1,7.02766064]
[1673255604424,0.10690792,1313.2,1313.1,29.87434064]
[1673255605117,0.10690792,1313.2,1313.1,33.87434064]
[1673255605539,0.10359388,1313.2,1313.1,33.87434064]
[1673255608323,0.5439,1313.6,1313.1,33.87434064]
[1673255608575,36.35164138,1313.7,1313.2,3.79766064]
[1673255608759,42.93075392,1313.7,1313.3,34.48410064]
[1673255608948,42.93075392,1313.7,1313.5,22.83972]
[1673255608949,31.8045296,1313.7,1313.5,22.83972]
[1673255609158,38.38364214,1313.7,1313.5,26.63738064]
[1673255609412,31.8045296,1313.7,1313.5,26.63738064]
[1673255609578,38.38364214,1313.7,1313.5,26.63738064]
[1673255609788,35.80764138,1313.7,1313.5,26.63738064]
[1673255610038,31.8045296,1313.7,1313.5,26.63738064]
[1673255614522,31.8045296,1313.7,1313.5,19.02414064]
[1673255615101,31.8045296,1313.7,1313.5,26.63738064]
[1673255619291,31.8045296,1313.7,1313.6,3.79766064]
[1673255619615,31.8045296,1313.7,1313.6,30.63564064]
[1673255619823,0.7257296,1313.7,1313.6,30.63564064]
[1673255621669,9.6e-06,1313.7,1313.6,30.63564064]
[1673255621920,9.6e-06,1313.7,1313.6,30.86564064]
[1673255622613,9.6e-06,1313.7,1313.6,33.86564064]
[1673255623995,0.15124935,1313.8,1313.6,33.86564064]
[1673255624335,20.0,1314.0,1313.8,30.446]
[1673255624556,20.0,1314.0,1313.9,26.86042064]
[1673255624951,20.0,1314.0,1313.9,30.86042064]
[1673255626967,20.0,1314.0,1313.9,30.63042064]
[1673255627140,20.0,1314.0,1313.9,26.63042064]
[1673255628609,20.0,1314.0,1313.9,15.22184]
[1673255628821,20.0,1314.0,1313.8,7.61138]
[1673255629021,20.0,1314.0,1313.7,15.22361]
[1673255629236,22.05443,1314.0,1313.8,7.61146]
[1673255629905,22.05443,1314.0,1313.7,11.40930064]
[1673255630075,22.05443,1314.0,1313.6,19.22504]
[1673255630291,22.05443,1314.0,1313.6,23.02270064]
[1673255630547,28.46030291,1314.0,1313.6,23.02270064]
[1673255630910,28.46030291,1314.0,1313.6,30.63536064]
[1673255631329,22.05443,1314.0,1313.6,30.63536064]
[1673255631580,28.46090644,1314.0,1313.6,30.63536064]
[1673255631754,22.05443,1314.0,1313.6,30.63536064]
[1673255633167,28.46437217,1314.0,1313.6,11.41018064]
[1673255633332,36.07484217,1314.0,1313.6,11.41018064]
[1673255635056,43.68531217,1314.0,1313.6,3.79766064]
[1673255635860,28.46437217,1314.0,1313.7,7.61197]
[1673255636090,22.05443,1314.0,1313.7,7.61197]
[1673255637841,6.40486168,1313.9,1313.5,3.0]
[1673255638052,12.1531435,1313.9,1313.4,15.22722]
[1673255638313,6.4046548,1313.8,1313.4,19.02470064]
[1673255639157,6.4046548,1313.8,1313.4,15.22704]
[1673255639374,7.15491135,1313.8,1313.4,7.6135]
[1673255639682,6.94242891,1313.7,1313.4,15.22732]
[1673255640160,6.39812891,1313.7,1313.4,15.22732]
[1673255640531,4.10689887,1313.8,1313.4,22.84114]
[1673255640532,10.50138685,1313.8,1313.4,22.84114]
[1673255640732,7.68884453,1313.8,1313.4,22.84114]
[1673255640892,6.93858798,1313.8,1313.4,26.63880064]
[1673255641680,6.93858798,1313.8,1313.4,19.02498064]
[1673255641856,6.93858798,1313.8,1313.4,26.63880064]
[1673255644574,6.93858798,1313.8,1313.4,26.6357481]
[1673255645625,6.93858798,1313.8,1313.4,7.61044746]
[1673255645901,22.16170798,1313.8,1313.3,25.84205]
[1673255646195,6.39730957,1313.7,1313.3,11.41158064]
[1673255646404,14.00962957,1313.7,1313.3,11.41158064]
[1673255646621,18.02911542,1313.7,1313.3,11.41158064]
[1673255646933,38.71491542,1313.7,1313.3,11.41158064]
[1673255647138,31.10259542,1313.7,1313.3,19.02598064]
[1673255647523,31.09965184,1313.7,1313.3,19.02598064]
[1673255649106,38.71185184,1313.7,1313.3,11.41158064]
[1673255649507,31.09965184,1313.7,1313.3,11.41158064]
[1673255649720,31.09969322,1313.7,1313.3,19.02598064]
[1673255650059,38.71179322,1313.7,1313.3,11.41158064]
[1673255650395,38.71179317,1313.7,1313.3,11.41158064]
[1673255650634,6.39480926,1313.6,1313.3,7.61392]
[1673255650771,10.26605077,1313.6,1313.3,7.61392]
[1673255652078,10.26605077,1313.6,1313.3,15.22832]
[1673255652297,10.26605077,1313.6,1313.3,7.61392]
[1673255652663,10.26605077,1313.6,1313.3,15.22832]
[1673255652877,10.26605077,1313.6,1313.3,22.84272]
[1673255653133,3.492,1313.4,1313.3,15.22832]
[1673255655507,1.746,1313.4,1313.3,15.22832]
[1673255655968,1.746,1313.4,1313.3,7.61392]
[1673255656178,1.746,1313.4,1313.3,15.22832]
[1673255656566,1.746,1313.4,1313.3,7.61392]
[1673255658761,1.746,1313.4,1313.2,7.61456]
[1673255658964,1.746,1313.4,1313.2,15.22954]
[1673255659470,1.746,1313.4,1313.2,22.84452]
[1673255660441,1.746,1313.5,1313.2,22.84452]
[1673255660806,4.11052417,1313.5,1313.2,22.84452]
[1673255662751,1.746,1313.5,1313.2,22.84452]
[1673255662960,1.746,1313.5,1313.3,10.61432]
[1673255663167,1.746,1313.5,1313.3,18.22872]
[1673255665280,1.746,1313.5,1313.3,18.22475943]
[1673255665491,1.746,1313.4,1313.3,10.61035943]
[1673255667212,1.746,1313.4,1313.3,2.99603943]
[1673255667532,2.55974326,1313.4,1313.2,3.0]
[1673255667742,1.746,1313.4,1313.2,3.0]
[1673255668117,1.746,1313.4,1313.2,10.61498]
[1673255668540,1.746,1313.4,1313.2,18.22996]
[1673255669817,1.796,1313.4,1313.2,18.22996]
[1673255670028,1.746,1313.4,1313.2,18.22996]
[1673255671837,1.746,1313.4,1313.2,3.0]
[1673255672212,1.746,1313.4,1313.2,10.61495]
[1673255673475,1.746,1313.4,1313.2,3.0]
[1673255675361,3.443302,1313.4,1313.2,3.0]
[1673255675571,3.443302,1313.4,1313.1,7.61524]
[1673255675572,0.71108337,1313.3,1313.1,7.61524]
[1673255676635,0.71108337,1313.3,1313.1,15.2308]
[1673255677890,0.71108337,1313.3,1313.1,7.61524]
[1673255681575,0.71108337,1313.3,1313.1,22.84636]
[1673255682259,0.71108337,1313.3,1313.1,15.2308]
[1673255683836,0.71108337,1313.3,1313.1,7.61524]
[1673255684050,0.71108337,1313.3,1313.0,15.58482499]
[1673255684396,0.71108337,1313.3,1313.0,23.20096499]
[1673255684553,0.71108337,1313.3,1313.0,15.28166499]
[1673255685236,0.71108337,1313.3,1313.0,29.68525113]
[1673255686354,0.71108337,1313.3,1313.0,29.68125212]
[1673255690490,0.76108337,1313.3,1313.0,29.68125212]
[1673255690652,0.71108337,1313.3,1313.0,29.68125212]
[1673255693596,4.00311178,1313.7,1313.2,3.475]
[1673255693805,4.00311178,1313.7,1313.3,26.63999064]
[1673255693806,30.9614,1313.7,1313.3,26.63999064]
[1673255694123,30.9614,1313.7,1313.5,7.61324]
[1673255694328,31.5053,1313.7,1313.5,7.61324]
[1673255694578,0.61183162,1313.6,1313.5,15.22648]
[1673255698444,0.61183162,1313.6,1313.5,7.61324]
[1673255698660,0.61183162,1313.6,1313.4,10.61334]
[1673255698868,0.61183162,1313.6,1313.4,18.22716]
[1673255699211,0.61183162,1313.6,1313.4,24.9887137]
[1673255699526,0.61183162,1313.6,1313.5,28.58572]
[1673255699718,0.61183162,1313.6,1313.5,31.58572]
[1673255701628,0.61183162,1313.6,1313.5,35.38338064]
[1673255704915,0.61183162,1313.6,1313.5,23.77014064]
[1673255705497,0.61183162,1313.6,1313.5,3.0]
[1673255707962,0.61183162,1313.6,1313.3,17.60974]
[1673255708120,0.61183162,1313.6,1313.4,10.61376]
[1673255708772,0.61183162,1313.6,1313.4,18.22758]
[1673255709852,0.61183162,1313.6,1313.4,25.8414]
[1673255711516,0.61183162,1313.6,1313.4,29.63906064]
[1673255711728,0.61183162,1313.6,1313.4,37.25288064]
[1673255713480,0.61183162,1313.6,1313.5,26.63738064]
[1673255716576,32.81253973,1313.9,1313.5,26.63738064]
[1673255717401,32.81253973,1313.9,1313.6,3.0]
[1673255717620,32.81253973,1313.9,1313.7,22.83624]
[1673255718432,10.93693973,1313.9,1313.7,26.63390064]
[1673255718963,0.44273973,1313.9,1313.8,3.79766064]
[1673255719168,0.44273973,1313.9,1313.8,30.62980579]
[1673255719731,20.0,1314.0,1313.8,30.62980579]
[1673255720317,20.0,1314.0,1313.9,3.79766064]
[1673255720533,20.0,1314.0,1313.9,26.63042064]
[1673255721158,20.0,1314.0,1313.6,28.96719]
[1673255721492,20.0,1314.0,1313.7,19.02120064]
[1673255721703,20.0,1314.0,1313.7,26.63328064]
[1673255724034,20.0,1314.0,1313.7,15.22354]
[1673255724727,20.5443,1314.0,1313.7,15.22354]
[1673255724985,24.88936,1314.0,1313.7,15.22354]
[1673255725165,24.88936,1314.0,1313.7,22.83562]
[1673255725571,24.88936,1314.0,1313.7,26.63328064]
[1673255725914,24.88936,1314.0,1313.7,19.02120064]
[1673255726145,26.27336,1314.0,1313.7,7.61152]
[1673255726335,1.388,1313.9,1313.6,10.61209]
[1673255726667,4.154136,1313.9,1313.6,10.61209]
[1673255727510,4.154136,1313.9,1313.6,3.0]
[1673255727887,2.766136,1313.9,1313.6,10.61265]
[1673255728522,2.766136,1313.9,1313.6,25.83797]
[1673255729276,2.766136,1313.9,1313.6,10.61265]
[1673255729926,2.766136,1313.9,1313.6,3.0]
[1673255730506,2.766136,1313.9,1313.6,10.61264]
[1673255734236,10.377136,1313.9,1313.6,3.0]
[1673255734541,2.766136,1313.9,1313.6,3.0]
[1673255736080,10.377106,1313.9,1313.6,3.0]
[1673255736609,10.377106,1313.9,1313.6,10.61262]
[1673255736610,2.766136,1313.9,1313.6,10.61262]
[1673255737695,10.377386,1313.9,1313.6,3.0]
[1673255737866,0.05,1313.8,1313.4,27.52223]
[1673255738073,50.13525547,1313.9,1313.4,23.70637064]
[1673255738318,42.52361079,1313.9,1313.4,22.84105]
[1673255738523,42.52328079,1313.9,1313.4,15.22723]
[1673255738961,42.52328079,1313.9,1313.3,7.61437]
[1673255738962,1.39,1313.7,1313.3,7.61437]
[1673255739136,3.12963536,1313.7,1313.3,15.22874]
[1673255739345,3.12963536,1313.7,1313.3,7.61437]
[1673255739694,10.19771536,1313.7,1313.3,7.61437]
[1673255739911,25.55383536,1313.7,1313.3,15.22877]
[1673255740066,25.55383536,1313.7,1313.2,14.6145]
[1673255740067,1.39,1313.6,1313.2,18.22912]
[1673255740276,16.24434687,1313.6,1313.2,18.22912]
[1673255740531,1.382,1313.5,1313.2,15.2291]
[1673255741058,1.382,1313.5,1313.2,7.6145]
[1673255741962,0.05,1313.4,1313.2,7.6145]
[1673255742175,1.382,1313.5,1313.2,7.6145]
[1673255742398,3.96034269,1313.5,1313.2,7.6145]
[1673255743430,3.96034269,1313.5,1313.1,15.2304]
[1673255743431,1.39,1313.4,1313.0,22.27792598]
[1673255744065,0.05,1313.3,1313.0,22.27792598]
[1673255744278,11.8512,1313.4,1313.0,22.27792598]
[1673255744846,11.8512,1313.4,1313.0,29.89059436]
[1673255745075,16.24187827,1313.4,1313.0,29.89059436]
[1673255748180,16.23087827,1313.4,1313.0,29.89059436]
[1673255750579,16.23087827,1313.4,1313.0,18.27445436]
[1673255752658,16.23087827,1313.4,1313.0,10.65841436]
[1673255753352,23.84475827,1313.4,1313.0,10.65841436]
[1673255754535,16.23087827,1313.4,1313.0,18.27455436]
[1673255755378,16.23087827,1313.4,1313.0,25.89069436]
[1673255756264,16.23087827,1313.4,1313.0,18.27455436]
[1673255756814,16.23087827,1313.4,1313.0,25.89069436]
[1673255758419,16.23087827,1313.4,1313.0,18.27455436]
[1673255760172,16.23087827,1313.4,1313.0,25.89069436]
[1673255760391,16.23087827,1313.4,1313.0,18.27455436]
[1673255760612,16.23087827,1313.4,1313.0,25.89069436]
[1673255761346,16.23087827,1313.4,1313.0,18.27455436]
[1673255761534,16.23087827,1313.4,1313.0,25.89069436]
[1673255762574,14.85187827,1313.4,1313.0,33.688355]
[1673255762784,10.4612,1313.4,1313.0,33.688355]
[1673255763671,10.4612,1313.4,1313.1,4.0]
[1673255763854,10.4612,1313.4,1313.2,22.84494]
[1673255766397,10.4612,1313.4,1313.2,15.22996]
[1673255766615,23.2419,1313.5,1313.2,25.529465]
[1673255766882,23.7858,1313.5,1313.2,25.529465]
[1673255767183,23.7858,1313.5,1313.2,17.914485]
[1673255768431,23.7858,1313.5,1313.2,22.84494]
[1673255772427,23.7858,1313.5,1313.2,22.84287351]
[1673255773472,23.7858,1313.5,1313.2,15.22789351]
[1673255773803,23.7858,1313.5,1313.2,22.84287351]
[1673255775255,23.7858,1313.5,1313.2,26.64053415]
[1673255775452,22.4078,1313.5,1313.2,26.64053415]
[1673255777059,0.05,1313.3,1313.2,26.64053415]
[1673255777237,22.4078,1313.5,1313.2,26.64053415]
[1673255780179,21.8639,1313.5,1313.2,26.64053415]
[1673255789771,11.2116,1313.6,1313.2,26.64053415]
[1673255790781,11.2116,1313.6,1313.3,7.79766064]
[1673255791021,11.2116,1313.6,1313.4,15.22764]
[1673255791233,12.9146194,1313.6,1313.4,15.22764]
[1673255791577,12.9146194,1313.6,1313.4,7.61382]
[1673255793402,12.9146194,1313.6,1313.4,7.60988153]
[1673255793831,12.9146194,1313.6,1313.4,15.22370153]
[1673255794037,12.9146194,1313.6,1313.4,22.83752153]
[1673255794399,9.4736,1313.6,1313.4,22.83752153]
[1673255794553,22.7497,1313.7,1313.4,22.83752153]
[1673255795559,22.2057,1313.7,1313.4,26.63518217]
[1673255797433,22.2057,1313.7,1313.4,19.02136217]
[1673255797647,22.2557,1313.7,1313.4,26.63518217]
[1673255797846,22.2057,1313.7,1313.4,29.69870039]
[1673255798050,22.2057,1313.7,1313.4,19.02136217]
[1673255798293,22.2057,1313.7,1313.4,26.63518217]
[1673255801444,26.20881178,1313.7,1313.4,26.63518217]
[1673255801622,22.2057,1313.7,1313.4,26.63518217]
[1673255802662,26.20881178,1313.7,1313.4,26.63518217]
[1673255803119,22.2057,1313.7,1313.4,26.63518217]